fUSD/lending_fUSD_20240701
["ID","MTS","AMOUNT","RATE_DAILY","PERIOD"]
[330811148,1719822644726,-151.0,0.00017446,2]
[330811149,1719822644736,-151.0,0.00017446,2]
[330811150,1719822644745,-151.0,0.00017446,2]
[330811151,1719822644755,-152.097199,0.00017446,2]
[330811152,1719822644765,-151.0,0.00017446,2]
[330811153,1719822644774,-151.0,0.00017446,2]
[330811154,1719822644784,-151.0,0.00017446,2]
[330811155,1719822644793,-151.0,0.00017446,2]
[330811156,1719822644802,-417.915828,0.00017446,2]
[330811157,1719822644811,-417.915828,0.00017446,2]
[330811158,1719822644822,-1000.0,0.00017446,2]
[330811159,1719822644831,-1000.0,0.00017446,2]
[330811160,1719822644840,-1000.0,0.00017446,2]
[330811161,1719822644849,-1000.0,0.00017446,2]
[330811162,1719822644859,-1000.0,0.00017446,2]
[330811163,1719822644868,-1000.0,0.00017446,2]
[330811164,1719822644877,-1000.0,0.00017446,2]
[330811165,1719822644887,-1000.0,0.00017446,2]
[330811166,1719822644896,-1000.0,0.00017446,2]
[330811167,1719822644905,-1000.0,0.00017446,2]
[330811168,1719822644915,-1000.0,0.00017446,2]
[330811169,1719822644927,-1000.0,0.00017446,2]
[330811170,1719822644937,-1000.0,0.00017446,2]
[330811171,1719822644947,-1000.0,0.00017446,2]
[330811172,1719822644956,-1000.0,0.00017446,2]
[330811173,1719822644965,-1000.0,0.00017446,2]
[330811174,1719822644975,-1000.0,0.00017446,2]
[330811175,1719822644984,-1000.0,0.00017446,2]
[330811176,1719822644993,-1000.0,0.00017446,2]
[330811177,1719822645003,-1000.0,0.00017446,2]
[330811178,1719822645012,-1000.0,0.00017446,2]
[330811179,1719822645021,-1000.0,0.00017446,2]
[330811180,1719822645031,-1000.0,0.00017446,2]
[330811181,1719822645040,-1000.0,0.00017446,2]
[330811182,1719822645049,-1000.0,0.00017446,2]
[330811183,1719822645059,-1000.0,0.00017446,2]
[330811184,1719822645068,-1000.0,0.00017446,2]
[330811185,1719822645077,-415.1286,0.00017446,2]
[330811186,1719822645086,-500.0,0.00017446,2]
[330811187,1719822645096,-500.0,0.00017446,2]
[330811188,1719822645105,-500.0,0.00017446,2]
[330811189,1719822645115,-501.2106,0.00017446,2]
[330811190,1719822645124,-491.0,0.000175,2]
[330811191,1719822645135,-155.31739721,0.00017533,2]
[330811192,1719822645144,-5916.48029099,0.00017533,2]
[330811193,1719822645153,-151.0,0.00017533,2]
[330811194,1719822645164,-1000.0,0.00017534,2]
[330811195,1719822645173,-1000.0,0.00017534,2]
[330811196,1719822645183,-1000.0,0.00017534,2]
[330811197,1719822645194,-767.47924399,0.00017534,2]
[330811198,1719822645203,-362.126231,0.00017534,2]
[330811199,1719822645212,-1552.19042,0.0001754,2]
[330811200,1719822645221,-8345.70932664,0.00017627,2]
[330811201,1719822645230,-501.31127049,0.000177,2]
[330811202,1719822645239,-316.36096443,0.00017708,5]
[330811203,1719822645248,-150.0,0.00017777,2]
[330811204,1719822645257,-150.0,0.00017777,2]
[330811205,1719822645266,-150.0,0.00017777,2]
[330811206,1719822645275,-150.0,0.00017777,2]
[330811207,1719822645284,-150.0,0.00017777,2]
[330811208,1719822645294,-150.0,0.00017777,2]
[330811209,1719822645304,-300.0,0.00017777,2]
[330811210,1719822645314,-150.0,0.00017777,2]
[330811211,1719822645324,-150.0,0.00017777,2]
[330811212,1719822645334,-164.8,0.00017777,2]
[330811213,1719822645345,-150.0,0.00017777,2]
[330811214,1719822645355,-164.8,0.00017777,2]
[330811215,1719822645364,-424.18,0.00017777,2]
[330811216,1719822645373,-150.0,0.00017777,2]
[330811217,1719822645383,-424.18,0.00017777,2]
[330811218,1719822645392,-164.8,0.00017777,2]
[330811219,1719822645401,-164.8,0.00017777,2]
[330811220,1719822645410,-424.18,0.00017777,2]
[330811221,1719822645606,-150.0,0.00017777,2]
[330811222,1719822645616,-164.8,0.00017777,2]
[330811223,1719822645625,-150.0,0.00017777,2]
[330811224,1719822645638,-424.18,0.00017777,2]
[330811225,1719822645649,-164.8,0.00017777,2]
[330811226,1719822645658,-150.0,0.00017777,2]
[330811227,1719822645671,-424.18,0.00017777,2]
[330811228,1719822645681,-424.18,0.00017777,2]
[330811229,1719822645690,-164.8,0.00017777,2]
[330811230,1719822645700,-150.0,0.00017777,2]
[330811231,1719822645710,-424.18,0.00017777,2]
[330811232,1719822645719,-164.8,0.00017777,2]
[330811233,1719822645731,-424.18,0.00017777,2]
[330811235,1719822645740,-164.8,0.00017777,2]
[330811236,1719822645749,-354.72,0.00017777,2]
[330811237,1719822645759,-424.18,0.00017777,2]
[330811238,1719822645768,-354.72,0.00017777,2]
[330811239,1719822645777,-424.18,0.00017777,2]
[330811240,1719822645787,-354.72,0.00017777,2]
[330811241,1719822645796,-363.27,0.00017777,2]
[330811242,1719822645807,-354.72,0.00017777,2]
[330811243,1719822645818,-354.72,0.00017777,2]
[330811244,1719822645827,-3674.70513185,0.00017815,2]
[330811245,1719822645837,-454.54,0.00017835,2]
[330811246,1719822645846,-167.0,0.00017921,2]
[330811247,1719822645855,-155.0,0.00018,2]
[330811248,1719822645864,-370.27430286,0.00018,2]
[330811249,1719822645873,-778.66410279,0.00018064,5]
[330811250,1719822645886,-150.0,0.00018301,2]
[330811251,1719822645895,-215.791441,0.00018309,2]
[330811252,1719822645904,-151.0,0.00018309,2]
[330811253,1719822645913,-346.061401,0.00018309,2]
[330811254,1719822645922,-151.0,0.00018309,2]
[330811255,1719822645931,-346.061401,0.00018309,2]
[330811256,1719822645942,-151.0,0.00018309,2]
[330811257,1719822645951,-151.0,0.00018309,2]
[330811258,1719822645961,-151.0,0.00018309,2]
[330811259,1719822645970,-151.0,0.00018309,2]
[330811260,1719822645979,-151.0,0.00018309,2]
[330811261,1719822645988,-151.0,0.00018309,2]
[330811262,1719822645998,-155.678447,0.00018309,2]
[330811263,1719822646008,-194.380588,0.00018309,2]
[330811264,1719822646017,-155.678447,0.00018309,2]
[330811265,1719822646027,-194.380588,0.00018309,2]
[330811266,1719822646037,-151.0,0.00018309,2]
[330811267,1719822646047,-3945.714343,0.00018309,2]
[330811268,1719822646056,-3945.714343,0.00018309,2]
[330811269,1719822646065,-164.772421,0.00018309,2]
[330811270,1719822646075,-151.0,0.00018309,2]
[330811271,1719822646084,-151.0,0.00018309,2]
[330811272,1719822646093,-151.0,0.00018309,2]
[330811273,1719822646102,-151.0,0.00018309,2]
[330811275,1719822646111,-151.0,0.00018309,2]
[330811277,1719822646120,-151.0,0.00018309,2]
[330811278,1719822646131,-288.764291,0.00018309,2]
[330811279,1719822646146,-151.0,0.00018309,2]
[330811280,1719822646155,-151.0,0.00018309,2]
[330811281,1719822646164,-151.0,0.00018309,2]
[330811282,1719822646174,-300.64335,0.00018309,2]
[330811283,1719822646183,-8345.70932664,0.00018309,2]
[330811284,1719822646192,-1000.0,0.00018327,2]
[330811285,1719822646202,-362.126231,0.00018356,2]
[330811286,1719822646211,-166.38,0.00018441,2]
[330811287,1719822646220,-167.0,0.00018444,2]
[330811288,1719822646230,-151.0,0.00018599,2]
[330811289,1719822646239,-155.843482,0.00018599,2]
[330811290,1719822646248,-155.843482,0.00018599,2]
[330811291,1719822646257,-151.0,0.00018599,2]
[330811292,1719822646267,-151.0,0.00018599,2]
[330811293,1719822646276,-612.769234,0.00018599,2]
[330811294,1719822646285,-151.0,0.00018599,2]
[330811295,1719822646294,-210.884756,0.00018599,2]
[330811296,1719822646304,-183.71193,0.00018599,2]
[330811297,1719822646313,-183.71193,0.00018599,2]
[330811298,1719822646322,-189.183918,0.00018599,2]
[330811299,1719822646332,-189.183918,0.00018599,2]
[330811300,1719822646341,-151.0,0.00018599,2]
[330811301,1719822646351,-151.0,0.00018599,2]
[330811302,1719822646360,-354.72,0.00018599,2]
[330811303,1719822646369,-354.72,0.00018599,2]
[330811304,1719822646379,-709.44,0.00018599,2]
[330811305,1719822646389,-347.68,0.00018599,2]
[330811306,1719822646398,-151.84120509,0.0001865,2]
[330811307,1719822646408,-3674.70513185,0.00018732,2]
[330811308,1719822646418,-158.61860174,0.00018758,2]
[330811309,1719822646427,-1552.19042,0.0001879,2]
[330811310,1719822646436,-2578.31,0.00018849,30]
[330811311,1719822646446,-155.06,0.000189,2]
[330811312,1719822646455,-154.94398227,0.00018962,2]
[330811313,1719822646465,-8345.70932664,0.00018991,2]
[330811314,1719822646475,-155.34957523,0.00019,2]
[330811315,1719822646484,-155.1650936,0.00019,2]
[330811316,1719822646493,-419.82687064,0.00019,2]
[330811317,1719822646502,-419.82687064,0.00019,2]
[330811318,1719822646512,-419.82687064,0.00019,2]
[330811319,1719822646521,-300.0,0.00019,2]
[330811320,1719822646530,-10000.0,0.00019176,2]
[330811321,1719822646539,-512.36404598,0.00019178,2]
[330811322,1719822646548,-500.0,0.00019178,2]
[330811323,1719822646560,-500.0,0.00019178,2]
[330811324,1719822646570,-500.0,0.00019178,2]
[330811325,1719822646580,-587.0,0.00019178,2]
[330811326,1719822646590,-500.0,0.00019178,2]
[330811327,1719822646599,-500.0,0.00019178,2]
[330811328,1719822646609,-271.74998696,0.00019178,2]
[330811329,1719822646618,-500.0,0.00019178,2]
[330811330,1719822646627,-500.0,0.00019178,2]
[330811331,1719822646640,-500.0,0.00019178,2]
[330811332,1719822646654,-500.0,0.00019178,2]
[330811333,1719822646663,-500.0,0.00019178,2]
[330811334,1719822646672,-500.0,0.00019178,2]
[330811335,1719822646681,-500.0,0.00019178,2]
[330811336,1719822646692,-500.0,0.00019178,2]
[330811337,1719822646701,-500.0,0.00019178,2]
[330811338,1719822646710,-500.0,0.00019178,2]
[330811339,1719822646720,-500.0,0.00019178,2]
[330811340,1719822646730,-520.51251837,0.00019178,2]
[330811341,1719822646739,-500.0,0.00019178,2]
[330811342,1719822646748,-500.0,0.00019178,2]
[330811343,1719822646758,-500.0,0.00019178,2]
[330811344,1719822646767,-500.0,0.00019178,2]
[330811345,1719822646776,-500.0,0.00019178,2]
[330811346,1719822646785,-500.0,0.00019178,2]
[330811347,1719822646794,-500.0,0.00019178,2]
[330811348,1719822646804,-500.0,0.00019178,2]
[330811349,1719822646813,-500.0,0.00019178,2]
[330811350,1719822646822,-500.0,0.00019178,2]
[330811351,1719822646831,-500.0,0.00019178,2]
[330811352,1719822646840,-500.0,0.00019178,2]
[330811353,1719822646850,-500.0,0.00019178,2]
[330811354,1719822646859,-500.0,0.00019178,2]
[330811355,1719822646868,-500.0,0.00019178,2]
[330811356,1719822646878,-500.0,0.00019178,2]
[330811357,1719822646889,-500.0,0.00019178,2]
[330811358,1719822646899,-500.0,0.00019178,2]
[330811359,1719822646908,-500.0,0.00019178,2]
[330811360,1719822646917,-500.0,0.00019178,2]
[330811361,1719822646927,-500.0,0.00019178,2]
[330811362,1719822646936,-500.0,0.00019178,2]
[330811363,1719822646945,-500.0,0.00019178,2]
[330811364,1719822646954,-500.0,0.00019178,2]
[330811365,1719822646964,-500.0,0.00019178,2]
[330811366,1719822646973,-500.0,0.00019178,2]
[330811367,1719822646983,-500.0,0.00019178,2]
[330811368,1719822646992,-450.43270276,0.00019178,2]
[330811369,1719822647001,-500.0,0.00019178,2]
[330811370,1719822647010,-244.07579236,0.00019178,2]
[330811371,1719822647020,-500.0,0.00019178,2]
[330811372,1719822647029,-500.0,0.00019178,2]
[330811374,1719822647038,-500.0,0.00019178,2]
[330811375,1719822647047,-500.0,0.00019178,2]
[330811376,1719822647057,-500.0,0.00019178,2]
[330811377,1719822647070,-500.0,0.00019178,2]
[330811378,1719822647078,-299.89592663,0.00019178,2]
[330811379,1719822647088,-500.0,0.00019178,2]
[330811380,1719822647097,-500.0,0.00019178,2]
[330811381,1719822647106,-172.61701035,0.00019178,2]
[330811382,1719822647115,-500.0,0.00019178,2]
[330811383,1719822647125,-500.0,0.00019178,2]
[330811384,1719822647137,-500.0,0.00019178,2]
[330811385,1719822647146,-500.0,0.00019178,2]
[330811386,1719822647155,-500.0,0.00019178,2]
[330811387,1719822647164,-500.0,0.00019178,2]
[330811388,1719822647174,-500.0,0.00019178,2]
[330811389,1719822647183,-500.0,0.00019178,2]
[330811390,1719822647192,-160.99538684,0.00019178,2]
[330811391,1719822647202,-500.0,0.00019178,2]
[330811392,1719822647211,-500.0,0.00019178,2]
[330811393,1719822647220,-500.0,0.00019178,2]
[330811394,1719822647229,-500.0,0.00019178,2]
[330811395,1719822647239,-500.0,0.00019178,2]
[330811396,1719822647251,-500.0,0.00019178,2]
[330811397,1719822647260,-500.0,0.00019178,2]
[330811398,1719822647270,-500.0,0.00019178,2]
[330811399,1719822647279,-500.0,0.00019178,2]
[330811401,1719822647288,-500.0,0.00019178,2]
[330811402,1719822647299,-174.17382826,0.00019178,2]
[330811403,1719822647308,-500.0,0.00019178,2]
[330811404,1719822647317,-283.28373721,0.00019178,2]
[330811405,1719822647327,-178.643694,0.00019178,2]
[330811406,1719822647336,-151.0,0.00019178,2]
[330811407,1719822647346,-151.0,0.00019178,2]
[330811408,1719822647355,-151.0,0.00019178,2]
[330811409,1719822647364,-151.0,0.00019178,2]
[330811410,1719822647373,-152.744374,0.00019178,2]
[330811411,1719822647383,-151.0,0.00019178,2]
[330811412,1719822647392,-151.0,0.00019178,2]
[330811413,1719822647402,-151.0,0.00019178,2]
[330811414,1719822647411,-240.346439,0.00019178,2]
[330811415,1719822647420,-240.346439,0.00019178,2]
[330811416,1719822647429,-151.0,0.00019178,2]
[330811417,1719822647438,-151.0,0.00019178,2]
[330811418,1719822647447,-151.0,0.00019178,2]
[330811419,1719822647456,-151.0,0.00019178,2]
[330811420,1719822647466,-270.934685,0.00019178,2]
[330811421,1719822647474,-270.934685,0.00019178,2]
[330811422,1719822647483,-151.0,0.00019178,2]
[330811423,1719822647494,-732.865049,0.00019178,2]
[330811424,1719822647504,-151.0,0.00019178,2]
[330811425,1719822647515,-732.865049,0.00019178,2]
[330811426,1719822647524,-259.167047,0.00019178,2]
[330811427,1719822647533,-151.0,0.00019178,2]
[330811428,1719822647543,-259.167047,0.00019178,2]
[330811429,1719822647553,-151.0,0.00019178,2]
[330811430,1719822647562,-151.0,0.00019178,2]
[330811431,1719822647571,-151.0,0.00019178,2]
[330811432,1719822647580,-151.0,0.00019178,2]
[330811433,1719822647589,-151.0,0.00019178,2]
[330811434,1719822647598,-151.0,0.00019178,2]
[330811435,1719822647607,-151.0,0.00019178,2]
[330811436,1719822647616,-151.0,0.00019178,2]
[330811437,1719822647626,-500.0,0.00019178,2]
[330811438,1719822647638,-500.0,0.00019178,2]
[330811439,1719822647650,-422.84295384,0.00019178,2]
[330811440,1719822647659,-151.0,0.00019178,2]
[330811441,1719822647668,-167.783691,0.00019178,2]
[330811442,1719822647679,-151.0,0.00019178,2]
[330811443,1719822647688,-151.0,0.00019178,2]
[330811444,1719822647697,-151.0,0.00019178,2]
[330811445,1719822647707,-151.0,0.00019178,2]
[330811446,1719822647717,-151.0,0.00019178,2]
[330811447,1719822647727,-417.915828,0.00019178,2]
[330811448,1719822647737,-417.915828,0.00019178,2]
[330811449,1719822647747,-151.0,0.00019178,2]
[330811450,1719822647756,-346.061401,0.00019178,2]
[330811451,1719822647765,-151.0,0.00019178,2]
[330811452,1719822647775,-346.061401,0.00019178,2]
[330811453,1719822647784,-151.0,0.00019178,2]
[330811454,1719822647793,-151.0,0.00019178,2]
[330811455,1719822647803,-151.0,0.00019178,2]
[330811456,1719822647812,-151.0,0.00019178,2]
[330811457,1719822647822,-151.0,0.00019178,2]
[330811458,1719822647832,-155.678447,0.00019178,2]
[330811459,1719822647841,-194.380588,0.00019178,2]
[330811460,1719822647850,-155.678447,0.00019178,2]
[330811461,1719822647860,-194.380588,0.00019178,2]
[330811462,1719822647869,-151.0,0.00019178,2]
[330811463,1719822647879,-3945.714343,0.00019178,2]
[330811464,1719822647889,-3945.714343,0.00019178,2]
[330811465,1719822647898,-239.120973,0.00019178,2]
[330811466,1719822647907,-151.0,0.00019178,2]
[330811467,1719822647916,-151.0,0.00019178,2]
[330811468,1719822647926,-151.0,0.00019178,2]
[330811469,1719822647935,-151.0,0.00019178,2]
[330811470,1719822647944,-151.0,0.00019178,2]
[330811471,1719822647953,-151.0,0.00019178,2]
[330811472,1719822647962,-151.0,0.00019178,2]
[330811473,1719822647971,-273.20654,0.00019178,2]
[330811474,1719822647980,-250.0,0.00019178,2]
[330811475,1719822647989,-152.94,0.00019178,2]
[330811476,1719822647998,-151.0,0.00019178,2]
[330811477,1719822648008,-151.0,0.00019178,2]
[330811478,1719822648018,-151.0,0.00019178,2]
[330811479,1719822648027,-151.0,0.00019178,2]
[330811480,1719822648036,-5408.78,0.00019178,2]
[330811481,1719822648045,-362.126231,0.00019178,2]
[330811482,1719822648054,-150.0,0.00019205,2]
[330811483,1719822648064,-423.73,0.00019205,2]
[330811484,1719822648072,-164.78,0.00019205,2]
[330811485,1719822648081,-151.0,0.00019244,2]
[330811486,1719822648090,-853.83,0.00019294,2]
[330811487,1719822648098,-418.89,0.00019294,2]
[330811488,1719822648108,-853.83,0.00019294,2]
[330811489,1719822648118,-853.83,0.00019294,2]
[330811490,1719822648127,-418.89,0.00019294,2]
[330811491,1719822648139,-853.83,0.00019294,2]
[330811492,1719822648148,-418.89,0.00019294,2]
[330811493,1719822648158,-853.83,0.00019294,2]
[330811494,1719822648167,-418.89,0.00019294,2]
[330811495,1719822648176,-853.83,0.00019294,2]
[330811496,1719822648185,-853.83,0.00019294,2]
[330811497,1719822648194,-418.89,0.00019294,2]
[330811498,1719822648203,-418.89,0.00019294,2]
[330811499,1719822648212,-418.12,0.00019294,2]
[330811500,1719822648221,-418.89,0.00019294,2]
[330811501,1719822648230,-418.89,0.00019294,2]
[330811502,1719822648239,-359.51,0.00019294,2]
[330811503,1719822648247,-151.0,0.00019294,2]
[330811504,1719822648257,-151.0,0.00019294,2]
[330811505,1719822648266,-151.0,0.00019294,2]
[330811506,1719822648276,-151.0,0.00019294,2]
[330811507,1719822648285,-268.921828,0.00019294,2]
[330811508,1719822648294,-151.0,0.00019294,2]
[330811509,1719822648303,-151.0,0.00019294,2]
[330811510,1719822648313,-155.843482,0.00019294,2]
[330811511,1719822648322,-155.843482,0.00019294,2]
[330811512,1719822648331,-152.054926,0.00019294,2]
[330811513,1719822648340,-151.0,0.00019294,2]
[330811514,1719822648349,-612.769234,0.00019294,2]
[330811515,1719822648359,-151.0,0.00019294,2]
[330811516,1719822648368,-183.71193,0.00019294,2]
[330811517,1719822648377,-183.71193,0.00019294,2]
[330811518,1719822648387,-189.183918,0.00019294,2]
[330811519,1719822648396,-189.183918,0.00019294,2]
[330811520,1719822648406,-151.0,0.00019294,2]
[330811521,1719822648415,-151.0,0.00019294,2]
[330811522,1719822648425,-536.46036163,0.00019352,2]
[330811523,1719822648434,-150.0,0.00019432,2]
[330811524,1719822648443,-2414.0,0.00019432,2]
[330811525,1719822648452,-1304.0,0.00019432,2]
[330811526,1719822648462,-548.0,0.00019432,2]
[330811527,1719822648471,-1987.0,0.00019432,2]
[330811528,1719822648481,-3205.0,0.00019432,2]
[330811529,1719822648490,-360.0,0.00019432,2]
[330811530,1719822648499,-1820.0,0.00019432,2]
[330811531,1719822648508,-1657.0,0.00019432,2]
[330811532,1719822648517,-1274.0,0.00019432,2]
[330811533,1719822648526,-1662.0,0.00019432,2]
[330811534,1719822648535,-175.775,0.00019432,2]
[330811535,1719822648545,-443.0,0.00019432,2]
[330811536,1719822648554,-622.944,0.00019432,2]
[330811537,1719822648563,-451.146,0.00019432,2]
[330811538,1719822648573,-525.285719,0.00019451,2]
[330811539,1719822648583,-881.80386009,0.000195,2]
[330811540,1719822648592,-310.38,0.00019556,2]
[330811541,1719822648601,-300.0,0.00019556,2]
[330811542,1719822648611,-150.0,0.00019556,2]
[330811543,1719822648620,-150.89,0.00019556,2]
[330811544,1719822648629,-500.0,0.00019589,2]
[330811545,1719822648645,-2049.5,0.000196,2]
[330811546,1719822648656,-3674.70513185,0.00019649,2]
[330811547,1719822648666,-8345.70932664,0.00019673,2]
[330811548,1719822648678,-579.79,0.00019726,2]
[330811549,1719822648688,-292.77617582,0.00019767,2]
[330811550,1719822648697,-151.84120509,0.000199,2]
[330811551,1719822648707,-1000.0,0.00019993,2]
[330811552,1719822648716,-448.06132112,0.0002,2]
[330811553,1719822648728,-1226.17999962,0.0002,2]
[330811554,1719822648737,-155.0,0.0002,2]
[330811555,1719822648747,-3171.8613027,0.0002,2]
[330811556,1719822648756,-188.17121959,0.0002,2]
[330811557,1719822648765,-327.16438361,0.0002,2]
[330811558,1719822648774,-4279.14032286,0.0002,15]
[330811559,1719822648784,-1500.0,0.0002,5]
[330811560,1719822648793,-500.08,0.0002,2]
[330811561,1719822648802,-500.0,0.0002,4]
[330811562,1719822648812,-500.0,0.0002,2]
[330811563,1719822648821,-4582.93917938,0.0002,2]
[330811564,1719822648830,-257.0,0.0002,2]
[330811565,1719822648839,-186.0,0.0002,2]
[330811566,1719822648849,-259.167047,0.0002,2]
[330811567,1719822648858,-157.604784,0.0002,2]
[330811568,1719822648867,-259.167047,0.0002,2]
[330811569,1719822648876,-151.0,0.0002,2]
[330811570,1719822648887,-151.0,0.0002,2]
[330811571,1719822648896,-151.0,0.0002,2]
[330811572,1719822648905,-151.0,0.0002,2]
[330811573,1719822648913,-151.0,0.0002,2]
[330811574,1719822648922,-151.0,0.0002,2]
[330811575,1719822648931,-151.0,0.0002,2]
[330811576,1719822648940,-151.0,0.0002,2]
[330811577,1719822648948,-151.0,0.0002,2]
[330811578,1719822648957,-151.0,0.0002,2]
[330811579,1719822648967,-151.0,0.0002,2]
[330811580,1719822648976,-151.0,0.0002,2]
[330811581,1719822648985,-151.0,0.0002,2]
[330811582,1719822648994,-151.0,0.0002,2]
[330811583,1719822649004,-151.0,0.0002,2]
[330811584,1719822649013,-151.0,0.0002,2]
[330811585,1719822649022,-417.915828,0.0002,2]
[330811586,1719822649031,-417.915828,0.0002,2]
[330811587,1719822649040,-194.42389029,0.0002,2]
[330811588,1719822649049,-172.969927,0.0002,2]
[330811589,1719822649059,-362.126231,0.0002,2]
[330811590,1719822649067,-1552.19042,0.0002004,2]
[330811591,1719822649076,-454.54,0.00020099,2]
[330811592,1719822649085,-151.0,0.00020104,2]
[330811593,1719822649094,-151.0,0.00020104,2]
[330811594,1719822649103,-240.346439,0.00020104,2]
[330811595,1719822649112,-240.346439,0.00020104,2]
[330811596,1719822649121,-151.0,0.00020104,2]
[330811597,1719822649138,-263.36432,0.00020104,2]
[330811598,1719822649147,-151.0,0.00020104,2]
[330811599,1719822649156,-270.934685,0.00020104,2]
[330811600,1719822649164,-270.934685,0.00020104,2]
[330811601,1719822649174,-151.0,0.00020104,2]
[330811602,1719822649183,-732.865049,0.00020104,2]
[330811603,1719822649192,-151.0,0.00020104,2]
[330811604,1719822649201,-732.865049,0.00020104,2]
[330811605,1719822649212,-154.457,0.00020112,2]
[330811606,1719822649221,-259.557,0.00020112,2]
[330811607,1719822649230,-166.38,0.00020118,2]
[330811608,1719822649239,-2002.98249456,0.0002012,2]
[330811609,1719822649248,-8345.70932664,0.00020355,2]
[330811610,1719822649259,-151.0,0.00020355,2]
[330811611,1719822649268,-155.843482,0.00020355,2]
[330811612,1719822649278,-155.843482,0.00020355,2]
[330811613,1719822649287,-256.871473,0.00020355,2]
[330811614,1719822649299,-612.769234,0.00020355,2]
[330811615,1719822649308,-151.0,0.00020355,2]
[330811616,1719822649317,-151.0,0.00020355,2]
[330811617,1719822649326,-346.061401,0.00020355,2]
[330811618,1719822649336,-151.0,0.00020355,2]
[330811619,1719822649347,-346.061401,0.00020355,2]
[330811620,1719822649356,-151.0,0.00020355,2]
[330811621,1719822649365,-151.0,0.00020355,2]
[330811622,1719822649374,-151.0,0.00020355,2]
[330811623,1719822649385,-151.0,0.00020355,2]
[330811624,1719822649394,-155.678447,0.00020355,2]
[330811625,1719822649403,-194.380588,0.00020355,2]
[330811626,1719822649411,-155.678447,0.00020355,2]
[330811627,1719822649420,-194.380588,0.00020355,2]
[330811628,1719822649430,-151.0,0.00020355,2]
[330811629,1719822649441,-3945.714343,0.00020355,2]
[330811630,1719822649452,-3945.714343,0.00020355,2]
[330811631,1719822649462,-151.0,0.00020355,2]
[330811632,1719822649471,-151.0,0.00020355,2]
[330811633,1719822649480,-151.0,0.00020355,2]
[330811634,1719822649489,-151.0,0.00020355,2]
[330811635,1719822649664,-151.0,0.00020355,2]
[330811636,1719822649673,-151.0,0.00020355,2]
[330811637,1719822649682,-155.813053,0.00020513,2]
[330811638,1719822649695,-151.0,0.00020513,2]
[330811639,1719822649704,-3674.70513185,0.00020566,2]
[330811640,1719822649714,-151.0,0.00020586,2]
[330811641,1719822649725,-194.54721008,0.00020722,2]
[330811642,1719822649734,-152.94,0.00020776,2]
[330811643,1719822649744,-151.0,0.00020799,2]
[330811644,1719822649754,-151.0,0.000208,2]
[330811645,1719822649763,-151.0,0.000208,2]
[330811646,1719822649772,-151.0,0.000208,2]
[330811647,1719822649781,-160.099108,0.000208,2]
[330811648,1719822649791,-151.0,0.000208,2]
[330811649,1719822649800,-151.0,0.000208,2]
[330811650,1719822649809,-151.0,0.000208,2]
[330811651,1719822649819,-151.0,0.000208,2]
[330811652,1719822649828,-151.0,0.000208,2]